bitfinex/quotes_SOLUSD_20251118
["timestamp","ask_amount","ask_price","bid_price","bid_amount"]
[1763476068324,0.69,139.26,139.23,10.24914797]
[1763476068630,0.69,139.26,139.23,4.38]
[1763476069545,0.69,139.26,139.22,14.34748215]
[1763476069833,0.69,139.26,139.22,4.38]
[1763476070203,18.12096,139.27,139.24,9.96748215]
[1763476070409,0.69,139.26,139.23,4.38]
[1763476070727,0.69,139.26,139.23,20.21663012]
[1763476070898,18.12096,139.27,139.24,5.86914797]
[1763476071106,0.69,139.31,139.26,9.96748215]
[1763476071333,0.69,139.31,139.28,9.96748215]
[1763476071805,0.69,139.31,139.27,15.83663012]
[1763476072003,3.72,139.35,139.29,9.96748215]
[1763476072206,0.69,139.34,139.29,14.34748215]
[1763476072430,0.69,139.34,139.3,9.96748215]
[1763476072800,18.81096,139.34,139.3,9.96748215]
[1763476072997,0.69,139.34,139.29,20.21663012]
[1763476073198,0.69,139.33,139.29,14.34748215]
[1763476073808,0.69,139.33,139.27,0.7]
[1763476073809,0.69,139.33,139.27,5.86914797]
[1763476074014,18.12096,139.3,139.26,10.24914797]
[1763476074235,18.12096,139.3,139.26,4.38]
[1763476074540,18.81096,139.29,139.26,4.38]
[1763476074832,18.12096,139.29,139.27,9.96748215]
[1763476075040,18.12096,139.29,139.26,14.34748215]
[1763476075239,18.81096,139.29,139.26,14.34748215]
[1763476076821,18.81096,139.29,139.26,4.38]
[1763476077024,18.81096,139.29,139.26,9.96748215]
[1763476077209,18.12096,139.29,139.25,9.96748215]
[1763476077541,18.12096,139.29,139.27,9.96748215]
[1763476077841,18.12096,139.31,139.28,9.96748215]
[1763476078010,0.69,139.31,139.25,10.94914797]
[1763476078209,0.69,139.31,139.27,9.96748215]
[1763476078711,0.69,139.31,139.28,14.34748215]
[1763476078926,14.34748215,139.35,139.29,14.34748215]
[1763476078927,0.69,139.34,139.29,14.34748215]
[1763476079345,0.69,139.34,139.31,9.96748215]
[1763476079543,0.69,139.4,139.33,9.96748215]
[1763476079834,0.69,139.4,139.37,9.96748215]
[1763476080039,0.69,139.4,139.37,14.34748215]
[1763476080335,0.69,139.49,139.38,15.37634439]
[1763476080639,0.69,139.49,139.39,5.33886224]
[1763476080826,0.69,139.49,139.45,9.96748215]
[1763476081041,0.69,139.49,139.45,14.34748215]
[1763476081223,9.96748215,139.48,139.39,5.86914797]
[1763476081426,9.96748215,139.47,139.4,4.70484593]
[1763476081725,10.65748215,139.48,139.4,14.34748215]
[1763476081911,9.96748215,139.48,139.41,14.66278791]
[1763476082112,18.12096,139.44,139.4,9.96748215]
[1763476082321,28.77844215,139.47,139.41,4.38]
[1763476082609,0.69,139.46,139.4,14.34748215]
[1763476082809,0.69,139.46,139.41,9.96748215]
[1763476083014,18.81096,139.46,139.41,9.96748215]
[1763476083414,9.96748215,139.49,139.42,9.96748215]
[1763476083615,0.69,139.48,139.42,9.96748215]
[1763476083831,18.12096,139.47,139.43,9.96748215]
[1763476084034,0.69,139.48,139.43,4.38]
[1763476084234,0.69,139.52,139.44,0.63]
[1763476084414,0.69,139.52,139.45,4.67288215]
[1763476084617,18.12096,139.51,139.46,14.34748215]
[1763476084970,0.69,139.52,139.44,5.96059652]
[1763476084971,18.12096,139.5,139.44,5.96059652]
[1763476085136,18.12096,139.5,139.44,4.38]
[1763476085313,18.12096,139.5,139.4,10.41882769]
[1763476085314,5.96059652,139.54,139.42,0.63]
[1763476085515,4.38,139.55,139.44,5.96059652]
[1763476085516,0.69,139.49,139.44,5.96059652]
[1763476085714,18.81096,139.49,139.44,5.96059652]
[1763476085936,18.81096,139.49,139.43,4.38]
[1763476086119,0.69,139.48,139.43,4.38]
[1763476086322,18.81096,139.48,139.43,5.96059652]
[1763476086726,18.12096,139.48,139.45,5.96059652]
[1763476086947,18.12096,139.48,139.44,5.96059652]
[1763476087148,6.65059652,139.47,139.39,4.38]
[1763476087439,18.12096,139.41,139.36,5.96059652]
[1763476087616,24.08155652,139.41,139.34,5.96059652]
[1763476087954,18.81096,139.4,139.34,5.96059652]
[1763476088130,18.81096,139.4,139.28,5.86914797]
[1763476088439,18.81096,139.4,139.28,5.96059652]
[1763476088440,5.96059652,139.35,139.28,5.96059652]
[1763476088875,6.65059652,139.34,139.27,5.96059652]
[1763476089171,0.69,139.34,139.28,5.96059652]
[1763476089366,0.69,139.34,139.26,0.63]
[1763476089968,0.69,139.34,139.3,5.96059652]
[1763476090374,18.12096,139.32,139.23,0.63]
[1763476090579,24.77155652,139.31,139.23,0.63]
[1763476090742,18.81096,139.31,139.25,5.96059652]
[1763476090943,18.12096,139.31,139.25,5.96059652]
[1763476091139,0.69,139.3,139.25,5.96059652]
[1763476091573,6.65059652,139.3,139.24,5.96059652]
[1763476091879,0.69,139.3,139.24,5.96059652]
[1763476092042,18.12096,139.28,139.23,5.96059652]
[1763476092369,18.12096,139.28,139.24,5.96059652]
[1763476092539,18.83096,139.28,139.24,5.96059652]
[1763476093155,5.96059652,139.3,139.24,5.96059652]
[1763476093473,0.71,139.27,139.22,5.96059652]
[1763476093651,0.71,139.27,139.19,35.50320735]
[1763476093850,5.96059652,139.26,139.2,41.73487166]
[1763476094253,18.12096,139.28,139.23,5.96059652]
[1763476094459,0.71,139.27,139.23,5.96059652]
[1763476094767,0.71,139.35,139.26,5.96059652]
[1763476094959,0.71,139.35,139.3,5.96059652]
[1763476095161,0.71,139.35,139.28,5.96059652]
[1763476095162,6.67059652,139.35,139.28,5.96059652]
[1763476095347,6.67059652,139.35,139.28,10.34059652]
[1763476095545,0.71,139.34,139.28,10.34059652]
[1763476095980,0.71,139.34,139.26,4.38]
[1763476095981,24.08155652,139.33,139.26,4.38]
[1763476096151,24.08155652,139.33,139.26,10.34059652]
[1763476096348,0.71,139.32,139.27,5.96059652]
[1763476096553,0.71,139.32,139.28,5.96059652]
[1763476097149,0.71,139.32,139.29,5.96059652]
[1763476098162,0.71,139.32,139.28,5.96059652]
[1763476098360,24.08155652,139.29,139.21,37.04254852]
[1763476098559,18.12096,139.29,139.23,5.96059652]
[1763476098764,18.83096,139.29,139.24,9.9153317]
[1763476098966,0.71,139.32,139.26,5.96059652]
[1763476099146,0.71,139.32,139.25,9.91308118]
[1763476099147,0.71,139.33,139.28,5.96059652]
[1763476099351,0.71,139.33,139.29,5.21338712]
[1763476099678,6.67059652,139.33,139.26,5.96059652]
[1763476099994,0.71,139.33,139.27,15.86796866]
[1763476100178,0.71,139.33,139.28,5.21437632]
[1763476100484,6.67059652,139.33,139.26,5.96059652]
[1763476100657,0.71,139.33,139.27,20.2498723]
[1763476100862,0.71,139.33,139.28,5.21547282]
[1763476101068,0.71,139.33,139.27,10.34059652]
[1763476101386,0.71,139.33,139.28,9.90962436]
[1763476101563,0.71,139.33,139.27,4.38]
[1763476101564,0.71,139.33,139.29,5.21654804]
[1763476101758,6.67059652,139.33,139.27,4.38]
[1763476101972,5.96059652,139.31,139.27,4.38]
[1763476102176,5.96059652,139.31,139.25,4.38]
[1763476102497,0.71,139.3,139.26,5.22192668]
[1763476102678,0.71,139.3,139.25,4.38]
[1763476102875,0.71,139.3,139.26,5.22495493]
[1763476103081,0.71,139.3,139.25,4.38]
[1763476103267,0.71,139.3,139.26,5.22580784]
[1763476103462,0.71,139.3,139.25,4.38]
[1763476103799,6.67059652,139.3,139.21,32.03958842]
[1763476103991,5.96059652,139.27,139.22,9.93172746]
[1763476104169,5.96059652,139.27,139.21,26.17340055]
[1763476104369,0.71,139.26,139.22,9.93724274]
[1763476104690,4.38,139.31,139.25,5.96059652]
[1763476104862,0.71,139.31,139.26,9.93186918]
[1763476105062,0.71,139.31,139.27,9.93186918]
[1763476105285,0.71,139.31,139.28,5.22536307]
[1763476105482,0.71,139.31,139.25,5.96059652]
[1763476105788,6.67059652,139.31,139.26,9.92685167]
[1763476106087,6.67059652,139.31,139.27,5.22560894]
[1763476106281,0.71,139.3,139.25,4.38]
[1763476106461,0.71,139.3,139.21,30.55340055]
[1763476106462,23.21096,139.3,139.21,30.55340055]
[1763476106659,5.96059652,139.27,139.22,9.93847826]
[1763476106890,5.96059652,139.27,139.23,9.93847826]
[1763476107081,5.96059652,139.27,139.24,5.23168925]
[1763476107275,6.67059652,139.27,139.21,30.55340055]
[1763476107521,6.67059652,139.27,139.22,9.94234657]
[1763476107671,6.67059652,139.27,139.23,9.94234657]
[1763476107870,6.67059652,139.27,139.2,25.15427514]
[1763476107871,6.67059652,139.26,139.2,25.15427514]
[1763476108088,6.67059652,139.26,139.21,30.11731485]
[1763476108283,9.78882769,139.29,139.21,30.11731485]
[1763476108284,6.67059652,139.29,139.22,9.9439143]
[1763476108594,24.08155652,139.31,139.24,5.96059652]
[1763476108900,24.79155652,139.31,139.25,14.3239143]
[1763476109102,4.38,139.33,139.26,15.90451082]
[1763476109103,5.09,139.33,139.26,15.90451082]
[1763476109392,0.71,139.32,139.27,9.9439143]
[1763476109579,0.71,139.32,139.26,5.96059652]
[1763476109764,0.71,139.32,139.27,9.94445621]
[1763476109966,24.79155652,139.32,139.28,9.94445621]
[1763476110164,24.79155652,139.32,139.25,5.01]
[1763476110364,0.71,139.31,139.26,9.94477076]
[1763476110592,0.71,139.31,139.27,5.23336591]
[1763476110797,0.71,139.31,139.25,10.34059652]
[1763476111103,0.71,139.31,139.26,9.94831179]
[1763476111279,0.71,139.31,139.25,10.34059652]
[1763476111484,6.67059652,139.31,139.26,9.95055333]
[1763476111669,0.71,139.31,139.25,10.34059652]
[1763476111871,0.71,139.31,139.26,9.95055398]
[1763476112073,6.67059652,139.31,139.25,4.38]
[1763476112273,5.96059652,139.3,139.25,4.38]
[1763476112483,6.67059652,139.3,139.25,4.38]
[1763476112692,0.71,139.29,139.25,4.38]
[1763476113308,0.71,139.33,139.27,5.96059652]
[1763476113597,18.83096,139.33,139.28,9.95239065]
[1763476113908,6.67059652,139.35,139.29,9.94182422]
[1763476114074,6.67059652,139.35,139.28,5.96059652]
[1763476114275,24.08155652,139.35,139.29,9.94357169]
[1763476114470,0.71,139.34,139.3,5.23292829]
[1763476114688,5.96059652,139.31,139.25,5.86618787]
[1763476114896,24.08155652,139.32,139.26,14.30817836]
[1763476115107,0.71,139.31,139.27,9.94817836]
[1763476115304,0.71,139.31,139.28,5.23724325]
[1763476115501,0.71,139.31,139.25,4.36]
[1763476115706,6.67059652,139.31,139.26,9.95334728]
[1763476115877,6.67059652,139.31,139.25,4.36]
[1763476116206,6.67059652,139.3,139.26,9.95445351]
[1763476116390,0.71,139.3,139.25,4.36]
[1763476116593,0.71,139.3,139.26,9.95648103]
[1763476116895,0.71,139.3,139.25,4.36]
[1763476117096,5.96059652,139.29,139.21,11.82678439]
[1763476117289,0.71,139.3,139.21,11.82678439]
[1763476117290,24.08155652,139.28,139.22,14.32078736]
[1763476117502,24.08155652,139.28,139.23,9.96078736]
[1763476117803,0.71,139.27,139.22,4.36]
[1763476118003,0.71,139.28,139.23,9.9601672]
[1763476118304,0.71,139.28,139.22,4.36]
[1763476118305,0.71,139.28,139.22,10.32059652]
[1763476118482,0.71,139.28,139.23,9.95858775]
[1763476118677,0.71,139.28,139.22,4.36]
[1763476118887,0.71,139.28,139.23,5.24082473]
[1763476119092,0.71,139.28,139.22,4.36]
[1763476119400,0.71,139.28,139.23,5.2405672]
[1763476119586,0.71,139.28,139.22,4.36]
[1763476119792,6.67059652,139.28,139.23,5.24058598]
[1763476120090,6.67059652,139.28,139.22,4.36]
[1763476120410,6.67059652,139.28,139.23,5.24095998]
[1763476120581,6.67059652,139.28,139.22,4.36]
[1763476120779,18.12096,139.29,139.23,5.24042414]
[1763476121112,6.67059652,139.3,139.24,9.95468563]
[1763476121293,6.67059652,139.3,139.23,6.59059652]
[1763476121294,24.79155652,139.3,139.23,6.59059652]
[1763476121495,0.71,139.3,139.24,15.9136626]
[1763476121687,6.67059652,139.29,139.22,10.95059652]
[1763476121886,0.71,139.29,139.23,15.91462007]
[1763476122085,0.65,139.28,139.24,5.2384012]
[1763476122309,0.65,139.28,139.22,4.36]
[1763476122310,5.96059652,139.27,139.22,4.36]
[1763476122616,5.96059652,139.27,139.23,5.24018683]
[1763476122801,18.12096,139.31,139.24,5.23937988]
[1763476123005,18.12096,139.27,139.23,0.63]
[1763476123202,18.12096,139.27,139.24,5.24029301]
[1763476123506,18.12096,139.27,139.22,4.36]
[1763476123685,0.65,139.26,139.23,9.96116137]
[1763476123890,0.65,139.26,139.22,4.36]
[1763476124105,24.08155652,139.28,139.22,4.36]
[1763476124106,24.73155652,139.28,139.22,4.36]
[1763476124419,24.73155652,139.28,139.21,5.96059652]
[1763476124585,24.73155652,139.28,139.22,9.60315967]
[1763476124788,24.73155652,139.28,139.23,9.95962268]
[1763476124789,18.12096,139.28,139.23,9.95962268]
[1763476125101,18.12096,139.28,139.22,10.95059652]
[1763476125410,18.12096,139.28,139.23,5.87094086]
[1763476125610,18.12096,139.28,139.23,0.63]
[1763476127298,18.12096,139.28,139.24,5.24687497]
[1763476127492,18.12096,139.28,139.23,0.63]
[1763476127493,0.65,139.27,139.21,0.63]
[1763476127706,24.08155652,139.28,139.23,4.36]
[1763476128099,6.61059652,139.27,139.23,4.36]
[1763476128295,6.61059652,139.27,139.22,4.99]
[1763476128511,6.61059652,139.27,139.23,5.25176273]
[1763476128716,6.61059652,139.27,139.22,4.99]
[1763476129015,6.61059652,139.27,139.23,5.25176208]
[1763476129220,6.61059652,139.27,139.22,4.99]
[1763476129388,6.61059652,139.27,139.23,5.25649823]
[1763476129592,6.61059652,139.27,139.22,4.99]
[1763476129806,6.61059652,139.27,139.23,5.25685344]
[1763476129995,6.61059652,139.27,139.22,4.99]
[1763476130311,0.65,139.27,139.23,9.99755726]
[1763476130616,0.65,139.27,139.22,4.99]
[1763476130617,0.65,139.27,139.24,9.99755726]
[1763476130800,0.65,139.27,139.25,5.26600949]
[1763476131111,0.65,139.27,139.26,5.27422741]
[1763476132008,6.61059652,139.27,139.22,4.36]
[1763476132200,0.65,139.27,139.23,10.03498195]
[1763476132395,0.65,139.27,139.24,10.03498195]
[1763476132396,5.96059652,139.26,139.24,10.03498195]
[1763476132603,0.65,139.27,139.25,10.03498195]
[1763476132604,6.61059652,139.27,139.25,10.03498195]
[1763476132909,6.61059652,139.27,139.26,10.03498195]
[1763476137228,6.61059652,139.31,139.26,15.90116982]
[1763476137433,0.65,139.3,139.27,10.03498195]
[1763476137733,5.96059652,139.31,139.28,10.03498195]
[1763476137935,5.96059652,139.29,139.25,5.86618787]
[1763476138242,5.96059652,139.27,139.26,10.05860617]
[1763476138432,5.96059652,139.27,139.26,5.29374772]
[1763476138612,10.97059652,139.27,139.26,5.29374772]
[1763476138925,10.97059652,139.27,139.21,5.86618787]
[1763476139121,18.12096,139.24,139.22,10.06214639]
[1763476139329,18.12096,139.24,139.23,10.06214639]
[1763476139521,18.77096,139.24,139.23,10.06214639]
[1763476140292,24.73155652,139.24,139.23,10.06214639]
[1763476140496,29.09155652,139.24,139.23,10.06214639]
[1763476140712,29.09155652,139.24,139.18,5.86618787]
[1763476140929,5.96059652,139.21,139.19,10.07736835]
[1763476141113,5.96059652,139.21,139.2,10.07736835]
[1763476141440,6.61059652,139.23,139.2,10.07736835]
[1763476141736,0.65,139.23,139.21,10.07736835]
[1763476141926,0.65,139.23,139.22,10.07736835]
[1763476142098,5.96059652,139.23,139.22,10.07736835]
[1763476142430,6.61059652,139.23,139.22,10.07736835]
[1763476144046,6.61059652,139.23,139.17,12.73661898]
[1763476144047,6.61059652,139.23,139.17,10.22618787]
[1763476144230,6.61059652,139.23,139.11,0.2]
[1763476144231,18.12096,139.19,139.18,10.07781364]
[1763476144535,28.44155652,139.19,139.12,5.86618787]
[1763476144834,5.96059652,139.14,139.13,10.08398708]
[1763476145195,6.61059652,139.14,139.13,10.08398708]
[1763476145403,6.61059652,139.14,139.13,10.07982274]
[1763476145734,4.36,139.15,139.13,10.07982274]
[1763476145901,29.09155652,139.15,139.11,0.2]
[1763476146102,5.96059652,139.14,139.12,10.07255721]
[1763476146311,5.96059652,139.14,139.13,5.3008133]
[1763476146633,10.97059652,139.14,139.11,0.2]
[1763476146836,15.02668454,139.14,139.12,10.06308474]
[1763476147129,15.02668454,139.14,139.11,0.2]
[1763476147336,15.02668454,139.14,139.12,5.29080854]
[1763476147520,15.02668454,139.14,139.11,0.2]
[1763476147705,15.02668454,139.14,139.12,10.05225891]
[1763476147928,10.66668454,139.14,139.11,0.2]
[1763476148129,10.66668454,139.14,139.12,10.0526492]
[1763476148309,10.66668454,139.14,139.11,0.2]
[1763476148641,10.01668454,139.17,139.12,5.91713932]
[1763476148839,4.36,139.17,139.13,5.28540154]
[1763476149007,4.36,139.17,139.14,5.28464018]
[1763476149209,0.65,139.2,139.15,5.28464018]
[1763476149441,14.37668454,139.19,139.13,10.64668454]
[1763476149744,10.01668454,139.18,139.14,5.28107119]
[1763476149925,10.66668454,139.18,139.12,10.01668454]
[1763476150126,4.36,139.18,139.13,5.28143922]
[1763476150305,4.36,139.18,139.14,5.91143922]
[1763476150510,4.36,139.18,139.15,5.28143922]
[1763476150730,32.49764454,139.2,139.14,10.64668454]
[1763476150940,10.01668454,139.19,139.15,5.27895358]
[1763476151106,33.14764454,139.2,139.14,0.63]
[1763476151302,33.14764454,139.2,139.15,5.27811317]
[1763476151509,33.14764454,139.2,139.14,0.63]
[1763476151707,10.01668454,139.21,139.15,15.29399413]
[1763476152003,10.01668454,139.21,139.16,5.27628886]
[1763476152004,14.37668454,139.21,139.16,5.27628886]
[1763476152219,14.37668454,139.21,139.17,5.27628886]
[1763476152418,14.37668454,139.21,139.15,10.64668454]
[1763476152624,10.01668454,139.23,139.16,20.27964029]
[1763476152946,0.68,139.3,139.21,10.01668454]
[1763476153110,10.01668454,139.27,139.22,5.27295575]
[1763476153434,5.04,139.29,139.23,5.27295575]
[1763476153435,14.37668454,139.28,139.23,5.27295575]
[1763476153637,15.05668454,139.28,139.23,0.63]
[1763476153941,10.01668454,139.26,139.21,4.36]
[1763476154115,10.01668454,139.25,139.22,5.26640741]
[1763476154309,10.01668454,139.25,139.21,4.36]
[1763476154513,15.05668454,139.27,139.22,5.89829537]
[1763476154726,15.05668454,139.27,139.22,0.63]
[1763476155041,15.05668454,139.27,139.23,5.26737393]
[1763476155218,15.05668454,139.27,139.22,0.63]
[1763476155422,15.05668454,139.27,139.23,5.2682079]
[1763476155624,10.01668454,139.26,139.21,4.36]
[1763476155810,10.01668454,139.26,139.22,5.26794856]
[1763476156016,10.01668454,139.26,139.21,4.99]
[1763476156314,0.68,139.32,139.23,10.01668454]
[1763476156512,5.74949705,139.39,139.22,5.89862148]
[1763476156513,5.04,139.31,139.24,15.28530602]
[1763476156714,10.01668454,139.29,139.25,5.26862148]
[1763476156918,10.01668454,139.29,139.23,10.64668454]
[1763476157128,10.01668454,139.29,139.24,5.26594503]
[1763476157327,15.05668454,139.3,139.25,5.26594503]
[1763476157653,10.01668454,139.26,139.21,4.36]
[1763476157837,22.48096,139.27,139.22,15.91534968]
[1763476158038,22.48096,139.27,139.23,5.89866514]
[1763476158337,22.48096,139.27,139.22,0.63]
[1763476158338,10.69668454,139.27,139.22,0.63]
[1763476158643,5.04,139.27,139.23,5.26815814]
[1763476158828,4.36,139.27,139.24,5.26815814]
[1763476159029,4.36,139.27,139.22,10.64668454]
[1763476159338,5.04,139.27,139.23,5.26852999]
[1763476159515,4.36,139.27,139.24,5.26936397]
[1763476159709,4.36,139.27,139.23,0.63]
[1763476159710,15.05668454,139.29,139.23,0.63]
[1763476159932,10.01668454,139.28,139.24,5.26870884]
[1763476160247,14.37668454,139.28,139.23,0.63]
[1763476160450,15.05668454,139.28,139.24,5.26956339]
[1763476160653,15.05668454,139.28,139.21,4.36]
[1763476160654,10.01668454,139.26,139.21,4.36]
[1763476160946,10.01668454,139.26,139.22,5.27157926]
[1763476161113,10.69668454,139.26,139.23,5.27157926]
[1763476161314,10.01668454,139.24,139.19,5.86618787]
[1763476161514,10.01668454,139.22,139.2,5.27279682]
[1763476161829,10.01668454,139.22,139.18,4.34]
[1763476162029,14.35668454,139.23,139.19,5.2752771]
[1763476162221,4.34,139.23,139.2,5.2752771]
[1763476162572,5.02,139.23,139.21,5.2752771]
[1763476162736,0.68,139.23,139.18,4.34]
[1763476162908,14.35668454,139.24,139.19,5.2733412]
[1763476163114,15.03668454,139.24,139.2,5.2733412]
[1763476163311,15.03668454,139.24,139.21,5.2733412]
[1763476163542,15.03668454,139.24,139.18,14.98668454]
[1763476163751,15.03668454,139.24,139.19,5.27355487]
[1763476163971,10.01668454,139.23,139.2,5.27355487]
[1763476164178,0.68,139.23,139.15,15.88287241]
[1763476164344,10.01668454,139.22,139.16,15.29199165]
[1763476164545,10.69668454,139.23,139.17,19.63199165]
[1763476164774,10.69668454,139.23,139.18,5.27530711]
[1763476165374,10.69668454,139.23,139.18,5.90530711]
[1763476165673,10.69668454,139.23,139.19,5.27530711]
[1763476166458,10.01668454,139.21,139.17,4.34]
[1763476166787,10.01668454,139.21,139.13,18.12096]
[1763476166788,10.01668454,139.2,139.13,6.49618787]
[1763476167080,0.68,139.2,139.14,9.61864431]
[1763476167277,14.35668454,139.21,139.15,5.27864431]
[1763476167596,15.03668454,139.21,139.16,5.27864431]
[1763476167746,15.03668454,139.21,139.17,5.27864431]
[1763476167947,15.03668454,139.21,139.14,14.98668454]
[1763476167948,10.01668454,139.2,139.14,14.98668454]
[1763476168166,14.35668454,139.23,139.17,10.01668454]
[1763476168378,14.35668454,139.23,139.18,5.27860621]
[1763476168685,15.03668454,139.23,139.19,5.27860621]
[1763476168864,15.03668454,139.23,139.17,10.01668454]
[1763476169176,15.03668454,139.23,139.18,5.27860558]
[1763476169483,10.01668454,139.21,139.19,5.27860558]
[1763476169687,10.01668454,139.21,139.15,15.88287241]
[1763476169862,0.68,139.2,139.16,5.27912508]
[1763476170064,0.68,139.2,139.17,5.27912508]
[1763476170367,0.68,139.2,139.14,4.97]
[1763476170368,10.01668454,139.19,139.14,4.97]
[1763476170572,10.01668454,139.19,139.15,5.28152582]
[1763476170778,0.68,139.19,139.16,5.28152582]
[1763476171075,0.68,139.19,139.14,4.97]
[1763476171376,10.69668454,139.19,139.15,5.28246662]
[1763476171588,10.69668454,139.19,139.16,5.28246662]
[1763476171771,0.68,139.19,139.14,4.97]
[1763476171970,0.68,139.19,139.15,5.28243142]
[1763476172161,0.68,139.22,139.16,5.28243142]
[1763476172358,14.35668454,139.21,139.15,10.64668454]
[1763476172566,14.35668454,139.21,139.16,5.27953735]
[1763476172760,5.02,139.21,139.17,5.27953735]
[1763476172960,5.02,139.21,139.18,5.26943033]
[1763476173172,5.02,139.21,139.16,0.63]
[1763476173173,0.68,139.21,139.16,0.63]
[1763476173373,0.68,139.21,139.17,5.26924999]
[1763476173576,0.68,139.21,139.18,5.26924999]
[1763476173792,0.68,139.21,139.16,10.64668454]
[1763476174001,0.68,139.21,139.17,5.26838619]
[1763476174155,18.12096,139.23,139.18,5.26838619]
[1763476174473,10.01668454,139.21,139.19,5.26838619]
[1763476174679,10.69668454,139.22,139.15,16.51287241]
[1763476174871,0.68,139.21,139.16,5.26842682]
[1763476175069,0.68,139.21,139.17,5.26842682]
[1763476175261,0.68,139.21,139.18,5.26842682]
[1763476175467,0.68,139.21,139.16,10.64668454]
[1763476175668,15.03668454,139.23,139.17,5.89736014]
[1763476175880,10.69668454,139.25,139.19,10.01668454]
[1763476176075,5.02,139.25,139.2,5.26736014]
[1763476176276,5.02,139.25,139.21,5.26736014]
[1763476176602,5.02,139.25,139.19,10.01668454]
[1763476176603,18.12096,139.26,139.22,5.26302188]
[1763476176763,0.68,139.26,139.23,5.26302188]
[1763476176969,10.01668454,139.24,139.18,5.86618787]
[1763476177170,5.02,139.25,139.19,5.26481548]
[1763476177486,15.03668454,139.25,139.2,5.26481548]
[1763476177685,10.69668454,139.24,139.21,5.26481548]
[1763476177891,10.69668454,139.24,139.18,0.63]
[1763476178202,10.69668454,139.24,139.19,5.26497519]
[1763476178203,0.68,139.24,139.19,5.26497519]
[1763476178366,0.68,139.24,139.2,5.26497519]
[1763476178567,0.68,139.24,139.21,5.26497519]
[1763476178778,0.68,139.24,139.22,5.26513839]
[1763476179093,0.68,139.24,139.18,10.64668454]
[1763476179281,0.68,139.24,139.19,5.26649528]
[1763476179598,10.69668454,139.24,139.2,5.26649528]
[1763476179799,10.69668454,139.24,139.21,5.26649528]
[1763476179963,0.68,139.24,139.18,10.64668454]
[1763476180164,0.68,139.24,139.19,5.26801081]
[1763476180396,0.68,139.24,139.2,5.26801081]
[1763476180579,0.68,139.24,139.21,5.26801081]
[1763476180899,0.68,139.24,139.18,10.64668454]
[1763476181078,0.68,139.24,139.19,5.26844362]
[1763476181279,0.68,139.24,139.2,5.26844362]
[1763476181477,28.13764454,139.25,139.21,5.26844362]
[1763476181680,35.89190616,139.36,139.21,5.26844362]
[1763476181681,0.68,139.37,139.24,10.01668454]
[1763476181867,0.68,139.39,139.33,10.01668454]
[1763476182074,0.68,139.39,139.35,10.01668454]
[1763476182405,10.69668454,139.39,139.3,27.13706568]
[1763476182718,10.01668454,139.36,139.31,20.19570334]
[1763476182998,10.01668454,139.44,139.29,4.36]
[1763476182999,4.36,139.37,139.29,4.36]
[1763476183162,10.01668454,139.31,139.29,4.36]
[1763476183362,10.01668454,139.31,139.26,4.36]
[1763476183562,10.71668454,139.31,139.27,9.97650737]
[1763476183781,0.7,139.3,139.28,9.97669868]
[1763476184001,0.7,139.3,139.25,10.01668454]
[1763476184184,0.7,139.3,139.26,9.97595302]
[1763476184366,0.7,139.3,139.27,4.72594411]
[1763476184568,0.7,139.3,139.25,14.37668454]
[1763476184794,0.7,139.3,139.26,9.97707381]
[1763476184987,0.7,139.3,139.27,4.72611549]
[1763476185193,18.82096,139.32,139.26,10.01668454]
[1763476185376,0.7,139.32,139.27,9.97362266]
[1763476185575,0.7,139.32,139.28,9.97362266]
[1763476185884,0.7,139.32,139.26,10.01668454]
[1763476186091,10.71668454,139.32,139.27,9.97033302]
[1763476186271,10.71668454,139.32,139.28,9.97033302]
[1763476186474,10.71668454,139.32,139.26,10.01668454]
[1763476186675,0.7,139.31,139.27,9.9677437]
[1763476187014,10.01668454,139.28,139.21,5.86618787]
[1763476187302,32.96978769,139.31,139.22,4.72565032]
[1763476187303,9.78882769,139.3,139.22,4.72565032]
[1763476187507,10.01668454,139.28,139.23,4.72565032]
[1763476187872,0.7,139.27,139.23,4.72565032]